bitfinex/quotes_SOLUSD_20241031
["timestamp","ask_amount","ask_price","bid_price","bid_amount"]
[1730369067662,15.8314754,175.44,175.39,53.9892494]
[1730369067859,10.1315754,175.43,175.39,53.9892494]
[1730369070386,10.1315754,175.43,175.35,28.5143]
[1730369070387,10.1315754,175.43,175.38,10.1315754]
[1730369070553,10.1315754,175.4,175.35,10.1315754]
[1730369071684,10.1315754,175.4,175.35,15.8341754]
[1730369071866,10.1315754,175.4,175.36,23.902374]
[1730369072261,5.7012,175.41,175.36,34.0339494]
[1730369072262,15.8327754,175.41,175.36,34.0339494]
[1730369072467,10.1315754,175.4,175.35,10.1315754]
[1730369072980,10.1315754,175.39,175.34,10.1315754]
[1730369073470,5.7019,175.38,175.34,10.1315754]
[1730369079285,5.7019,175.38,175.33,30.0937754]
[1730369080278,5.7019,175.38,175.34,15.8346754]
[1730369080583,5.7019,175.38,175.34,5.7031]
[1730369081888,5.7012,175.4,175.36,10.1315754]
[1730369083093,5.7012,175.4,175.36,15.8340754]
[1730369084800,15.8317754,175.43,175.38,34.0339494]
[1730369085698,10.1315754,175.43,175.38,34.0339494]
[1730369086386,15.8315754,175.44,175.39,10.1315754]
[1730369086773,15.8315754,175.44,175.39,15.8329754]
[1730369087177,10.1315754,175.42,175.38,0.12549]
[1730369087401,10.1315754,175.42,175.38,5.82729]
[1730369091596,15.8320754,175.43,175.38,30.2135654]
[1730369091800,16.2847,175.46,175.4,0.12549]
[1730369092001,5.6992,175.47,175.38,30.0880754]
[1730369092002,10.1315754,175.43,175.38,30.0880754]
[1730369092177,10.1315754,175.42,175.38,14.2547]
[1730369092606,10.1315754,175.42,175.38,19.9566]
[1730369092906,15.8321754,175.42,175.38,19.9566]
[1730369096086,15.8321754,175.42,175.38,14.2547]
[1730369100211,10.1315754,175.41,175.37,0.12549]
[1730369100496,10.1315754,175.39,175.37,0.12549]
[1730369101280,10.1315754,175.4,175.37,0.12549]
[1730369101603,10.1315754,175.41,175.37,0.12549]
[1730369103096,10.1315754,175.41,175.33,6.91483209]
[1730369103097,10.1315754,175.38,175.33,22.74980749]
[1730369103781,15.8334754,175.38,175.33,37.00860749]
[1730369104311,15.8334754,175.38,175.34,23.902374]
[1730369104485,5.7019,175.38,175.34,23.902374]
[1730369105582,5.7019,175.38,175.34,39.7370494]
[1730369106387,5.7019,175.38,175.35,10.1315754]
[1730369110011,15.8334754,175.38,175.34,29.605574]
[1730369113416,10.1315754,175.39,175.34,39.7371494]
[1730369113792,10.1315754,175.38,175.34,29.605574]
[1730369115612,10.1315754,175.37,175.33,20.93294339]
[1730369115811,10.1315754,175.36,175.33,0.97074339]
[1730369116007,10.1315754,175.35,175.33,0.97074339]
[1730369116190,10.1315754,175.35,175.31,5.7039]
[1730369116391,10.1315754,175.35,175.31,6.67491066]
[1730369117210,10.1315754,175.35,175.31,16.80648606]
[1730369117916,10.1315754,175.36,175.31,16.80648606]
[1730369118112,15.8334754,175.38,175.33,10.1315754]
[1730369118420,15.8334754,175.38,175.34,10.1315754]
[1730369118605,31.2627754,175.39,175.34,10.1315754]
[1730369119918,10.1315754,175.38,175.34,15.8345754]
[1730369120096,10.1315754,175.38,175.34,5.703]
[1730369120894,10.1315754,175.37,175.34,5.703]
[1730369121396,10.1315754,175.37,175.33,14.2584]
[1730369121597,10.1315754,175.36,175.33,14.2584]
[1730369122615,10.1315754,175.37,175.33,19.9619]
[1730369123121,10.1315754,175.37,175.33,30.0934754]
[1730369123295,10.1315754,175.38,175.33,30.0934754]
[1730369124193,10.1315754,175.37,175.34,23.776884]
[1730369125494,5.7019,175.38,175.33,19.9619]
[1730369125495,10.1315754,175.36,175.33,19.9619]
[1730369126215,10.1315754,175.37,175.33,19.9619]
[1730369127416,15.8337754,175.37,175.33,19.9619]
[1730369128698,10.1315754,175.36,175.32,23.776884]
[1730369128899,10.1315754,175.33,175.31,0.97101066]
[1730369129520,10.1315754,175.34,175.31,0.97101066]
[1730369129702,10.1315754,175.34,175.29,16.46942094]
[1730369129905,10.1315754,175.34,175.29,30.73142094]
[1730369130313,10.1315754,175.34,175.3,23.776884]
[1730369130996,10.1315754,175.37,175.32,10.1315754]
[1730369131325,10.1315754,175.36,175.32,10.1315754]
[1730369131627,10.1315754,175.37,175.32,10.1315754]
[1730369131825,10.1315754,175.36,175.32,10.1315754]
[1730369132401,10.1315754,175.38,175.33,10.1315754]
[1730369132602,25.5611754,175.39,175.34,10.1315754]
[1730369133027,31.2628754,175.39,175.34,15.8344754]
[1730369133229,10.1315754,175.38,175.34,15.8344754]
[1730369133415,10.1315754,175.39,175.34,30.0924754]
[1730369133923,10.1315754,175.39,175.35,10.1315754]
[1730369134523,10.1315754,175.42,175.38,10.1315754]
[1730369134829,31.4497754,175.43,175.38,10.1315754]
[1730369135427,10.1315754,175.44,175.39,10.1315754]
[1730369136310,10.1315754,175.43,175.38,15.8331754]
[1730369136510,10.1315754,175.44,175.4,5.7012]
[1730369138537,10.1315754,175.44,175.4,19.9543]
[1730369142041,10.1315754,175.43,175.4,19.9543]
[1730369143312,10.1315754,175.43,175.4,14.2531]
[1730369143517,10.1315754,175.42,175.37,30.0889754]
[1730369144032,10.1315754,175.41,175.37,19.9574]
[1730369146666,10.1315754,175.44,175.4,10.1315754]
[1730369147458,10.1315754,175.45,175.41,10.1315754]
[1730369147639,10.1315754,175.46,175.42,19.9521]
[1730369147841,10.1315754,175.46,175.42,30.0836754]
[1730369148767,15.8305754,175.47,175.42,30.0836754]
[1730369151071,15.8305754,175.47,175.43,33.9084594]
[1730369151072,10.1315754,175.47,175.43,33.9084594]
[1730369152760,10.1315754,175.47,175.43,39.6085594]
[1730369153148,10.1315754,175.47,175.43,29.476984]
[1730369153470,16.4250042,175.48,175.43,53.8591594]
[1730369153845,10.1315754,175.46,175.41,10.1315754]
[1730369154947,10.1315754,175.46,175.41,15.8321754]
[1730369155457,15.8308754,175.46,175.41,15.8321754]
[1730369156063,0.5947288,175.48,175.43,10.1315754]
[1730369156064,15.8305754,175.47,175.43,10.1315754]
[1730369156260,10.1315754,175.46,175.42,10.1315754]
[1730369156463,15.8305754,175.47,175.42,10.1315754]
[1730369157041,15.8305754,175.47,175.43,5.7002]
[1730369157360,15.8305754,175.47,175.43,15.8317754]
[1730369158153,10.1315754,175.47,175.43,15.8317754]
[1730369158329,16.4249042,175.48,175.43,15.8317754]
[1730369159545,16.4249042,175.48,175.43,30.0823754]
[1730369160246,0.5947288,175.48,175.45,10.1315754]
[1730369161351,0.5947288,175.48,175.46,5.6993]
[1730369161651,0.5947288,175.48,175.46,15.8308754]
[1730369161854,0.5947288,175.48,175.46,5.6993]
[1730369163630,0.5947288,175.48,175.45,19.9478]
[1730369165353,0.5947288,175.48,175.45,30.0793754]
[1730369170789,6.2933288,175.48,175.45,10.1315754]
[1730369170997,10.1315754,175.47,175.43,10.1315754]
[1730369172265,16.4249042,175.48,175.43,15.8317754]
[1730369173580,6.2933288,175.48,175.44,10.1315754]
[1730369173872,16.4249042,175.48,175.44,10.1315754]
[1730369175579,16.4249042,175.48,175.43,15.8317754]
[1730369176156,10.1315754,175.47,175.42,10.80367712]
[1730369177336,10.1315754,175.47,175.42,16.50407712]
[1730369177337,15.8306754,175.47,175.42,16.50407712]
[1730369178067,15.8306754,175.47,175.43,10.1315754]
[1730369178267,15.8306754,175.47,175.42,16.50407712]
[1730369178941,5.6991,175.47,175.43,10.1315754]
[1730369181359,6.2934288,175.48,175.44,10.1315754]
[1730369181853,0.5947288,175.48,175.45,10.1315754]
[1730369182748,0.5947288,175.48,175.45,15.8308754]
[1730369191882,0.5947288,175.48,175.45,30.0798754]
[1730369193753,0.5947288,175.48,175.45,19.9483]
[1730369198474,10.7263042,175.48,175.45,19.9483]
[1730369199683,0.5947288,175.48,175.45,19.9483]
[1730369201482,10.7263042,175.48,175.45,19.9483]
[1730369202191,0.5947288,175.48,175.45,19.9483]
[1730369207475,10.7263042,175.48,175.45,14.249]
[1730369208885,16.4251042,175.48,175.42,30.75497712]
[1730369209097,10.1315754,175.46,175.42,20.62340172]
[1730369213976,10.1315754,175.46,175.42,30.75497712]
[1730369214282,15.8305754,175.47,175.42,30.75497712]
[1730369215474,0.5947288,175.48,175.44,10.1315754]
[1730369215674,10.7263042,175.48,175.43,34.0339494]
[1730369216790,10.7263042,175.48,175.44,5.6999]
[1730369222482,0.5947288,175.48,175.44,15.8314754]
[1730369223614,10.7263042,175.48,175.44,5.6999]
[1730369225633,10.7263042,175.48,175.44,19.9497]
[1730369226688,0.5947288,175.48,175.44,30.0812754]
[1730369230124,0.5947288,175.48,175.45,34.0339494]
[1730369230408,0.5947288,175.48,175.47,34.0339494]
[1730369231187,0.5947288,175.48,175.47,10.1315754]
[1730369231602,0.5947288,175.48,175.47,34.0339494]
[1730369232192,0.5947288,175.48,175.47,39.7328494]
[1730369242991,0.5947288,175.48,175.47,59.7328494]
[1730369244419,0.5947288,175.48,175.47,15.8304754]
[1730369245196,0.5947288,175.48,175.47,15.9559654]
[1730369245698,0.5947288,175.48,175.47,39.7328494]
[1730369246921,0.5947288,175.48,175.47,59.7328494]
[1730369249318,0.5947288,175.48,175.47,15.8304754]
[1730369249498,0.5947288,175.48,175.47,5.6989]
[1730369251093,0.5947288,175.48,175.46,14.2478]
[1730369251322,10.7263042,175.48,175.44,5.6999]
[1730369251498,10.1315754,175.47,175.44,19.9497]
[1730369252419,10.1315754,175.47,175.44,14.2498]
[1730369252798,10.1315754,175.46,175.44,14.2498]
[1730369256433,10.1315754,175.47,175.44,14.2498]
[1730369258524,10.1315754,175.46,175.44,14.2498]
[1730369258726,10.1315754,175.45,175.43,6.9343296]
[1730369258898,10.1315754,175.44,175.42,0.67210172]
[1730369259104,10.1315754,175.43,175.42,0.67210172]
[1730369259305,10.2570654,175.43,175.42,0.67210172]
[1730369260621,15.9572654,175.43,175.42,0.67210172]
[1730369263639,0.22549,175.4,175.35,0.99102334]
[1730369263817,10.1315754,175.36,175.29,5.7048]
[1730369264011,10.1315754,175.33,175.3,0.99135744]
[1730369264627,10.1315754,175.34,175.3,11.12293284]
[1730369265016,10.1315754,175.33,175.3,6.69555744]
[1730369266305,10.1315754,175.33,175.3,20.95675744]
[1730369271827,10.1315754,175.34,175.3,20.95675744]
[1730369274402,10.1315754,175.35,175.3,31.08833284]
[1730369275120,10.1315754,175.36,175.31,10.1315754]
[1730369275315,10.1315754,175.36,175.32,10.1315754]
[1730369275822,10.1315754,175.36,175.31,10.1315754]
[1730369276025,10.1315754,175.36,175.3,31.08833284]
[1730369277713,10.1315754,175.35,175.3,31.08833284]
[1730369280543,10.1315754,175.31,175.3,20.95675744]
[1730369280721,10.1315754,175.31,175.3,15.25255744]
[1730369281542,10.1315754,175.31,175.3,14.2612]
[1730369283127,10.1315754,175.31,175.3,19.9657]
[1730369283441,10.1315754,175.32,175.3,19.9657]
[1730369283645,10.1315754,175.33,175.3,19.9657]
[1730369284127,10.1315754,175.32,175.3,19.9657]
[1730369284528,10.1315754,175.32,175.29,0.70102951]
[1730369284529,10.1315754,175.31,175.29,0.70102951]
[1730369284833,0.12549,175.33,175.29,0.70102951]
[1730369284834,10.2570654,175.3,175.29,0.70102951]
[1730369285033,15.9615654,175.3,175.29,0.70102951]
[1730369286745,15.9615654,175.3,175.24,14.2654]
[1730369286924,10.1315754,175.27,175.24,19.9718]
[1730369288150,10.1315754,175.27,175.24,14.2654]
[1730369288544,10.1315754,175.26,175.24,14.2654]
[1730369289250,10.1315754,175.27,175.24,14.2654]
[1730369292544,10.1315754,175.28,175.24,19.9718]
[1730369292844,10.1315754,175.28,175.24,30.1033754]
[1730369293047,10.1315754,175.28,175.24,19.9718]
[1730369293231,10.1315754,175.26,175.22,6.69857828]
[1730369294449,10.1315754,175.26,175.22,20.96627828]
[1730369295538,10.1315754,175.27,175.22,31.09785368]
[1730369298149,10.1315754,175.24,175.22,20.96627828]
[1730369299040,10.1315754,175.25,175.22,20.96627828]
[1730369300954,10.1315754,175.37,175.32,0.9917]
[1730369301250,10.1315754,175.34,175.32,0.9917]
[1730369301648,10.1315754,175.33,175.32,0.9917]
[1730369303044,0.12549,175.34,175.32,0.9917]
[1730369303242,10.1315754,175.34,175.32,0.9917]
[1730369304157,10.1315754,175.35,175.32,0.9917]
[1730369305135,10.1315754,175.34,175.32,0.9917]
[1730369307056,10.1315754,175.34,175.3,5.7045]
[1730369307233,10.1315754,175.34,175.3,19.9657]
[1730369307760,10.1315754,175.33,175.29,5.7048]
[1730369307965,10.1315754,175.34,175.29,5.7048]
[1730369308432,10.1315754,175.34,175.29,19.9668]
[1730369308628,10.1315754,175.33,175.29,19.9668]
[1730369308940,10.1315754,175.33,175.29,14.262]
[1730369308941,10.1315754,175.31,175.29,14.262]
[1730369310757,10.1315754,175.32,175.27,10.1315754]
[1730369311136,10.1315754,175.33,175.29,10.1315754]
[1730369312358,10.1315754,175.33,175.29,15.8361754]
[1730369313937,10.1315754,175.33,175.28,10.1315754]
[1730369315435,10.1315754,175.33,175.29,5.7048]
[1730369316153,10.1315754,175.33,175.29,15.8363754]
[1730369316338,15.8350754,175.34,175.29,15.8363754]
[1730369317841,10.1315754,175.33,175.29,15.8363754]
[1730369319046,10.1315754,175.33,175.29,5.7048]
[1730369319446,10.1315754,175.33,175.28,24.3942754]
[1730369319447,10.1315754,175.32,175.28,14.2627]
[1730369320165,10.1315754,175.31,175.28,14.2627]
[1730369320351,10.1315754,175.29,175.25,25.91466098]
[1730369320544,10.1315754,175.28,175.25,25.91466098]
[1730369321159,10.1315754,175.29,175.25,25.91466098]
[1730369321675,15.8364754,175.29,175.25,19.9709]
[1730369324048,5.7049,175.29,175.25,24.3964754]
[1730369325176,5.7049,175.29,175.25,30.1025754]
[1730369325872,15.8360754,175.3,175.25,30.1025754]
[1730369327162,10.1315754,175.3,175.25,30.1025754]
[1730369327362,14.3568,175.36,175.28,10.1315754]
[1730369327363,10.1315754,175.33,175.28,10.1315754]
[1730369327766,10.1315754,175.32,175.27,10.1315754]
[1730369328562,10.1315754,175.32,175.28,5.7051]
[1730369329672,0.12549,175.31,175.27,14.2633]
[1730369329878,10.1315754,175.29,175.25,5.706]
[1730369330168,5.7039,175.32,175.25,5.706]
[1730369330169,10.1315754,175.28,175.25,5.706]
[1730369331570,10.1315754,175.27,175.24,14.2657]
[1730369331772,10.1315754,175.26,175.23,11.65236246]
[1730369332670,10.1315754,175.27,175.23,11.65236246]
[1730369338773,15.8368754,175.28,175.23,21.78393786]
[1730369341078,15.8368754,175.28,175.23,36.05083786]
[1730369343186,10.1315754,175.27,175.23,25.91926246]
[1730369344076,10.1315754,175.26,175.23,25.91926246]
[1730369345072,10.1315754,175.27,175.23,25.91926246]
[1730369347084,15.8368754,175.28,175.23,36.05083786]
[1730369347388,10.1315754,175.27,175.23,36.05083786]
[1730369349279,10.1315754,175.27,175.23,25.91926246]
[1730369352489,10.1315754,175.26,175.23,25.91926246]
[1730369352807,0.12549,175.23,175.17,5.7084]
[1730369353094,10.1315754,175.2,175.17,19.98]
[1730369355174,5.7073,175.22,175.14,5.94774963]
[1730369355175,0.12549,175.18,175.14,5.94774963]
[1730369355386,10.1315754,175.15,175.1,15.842276]
[1730369355576,0.12549,175.18,175.1,5.7107]
[1730369355577,10.1315754,175.14,175.1,5.7107]
[1730369355794,10.1315754,175.14,175.1,15.8422754]
[1730369356106,10.1315754,175.14,175.1,24.4090754]
[1730369356284,10.1315754,175.14,175.1,14.2775]
[1730369356477,10.1315754,175.14,175.1,19.10547447]
[1730369357699,10.1315754,175.16,175.11,10.1315754]
[1730369357881,5.83389,175.18,175.12,10.1315754]
[1730369357882,10.1315754,175.17,175.12,10.1315754]
[1730369358089,10.1315754,175.16,175.12,10.1315754]
[1730369358292,10.1315754,175.16,175.13,5.71]
[1730369358705,10.1315754,175.15,175.11,6.49783879]
[1730369359197,10.1315754,175.14,175.11,6.49783879]
[1730369360598,10.2570654,175.16,175.11,16.62941419]
[1730369361377,10.2570654,175.16,175.11,30.90611419]
[1730369361598,10.1315754,175.15,175.11,19.9871]
[1730369363901,10.1315754,175.15,175.1,10.1315754]
[1730369364106,10.1315754,175.13,175.08,25.19805166]
[1730369364324,10.1315754,175.13,175.08,30.90965166]
[1730369365399,10.1315754,175.11,175.08,15.06647626]
[1730369365600,10.1315754,175.1,175.08,15.06647626]
[1730369365984,10.1315754,175.11,175.08,15.06647626]
[1730369366491,0.12549,175.13,175.09,10.1315754]
[1730369366798,10.1315754,175.15,175.1,10.1315754]
[1730369367002,10.1315754,175.14,175.09,10.1315754]
[1730369367184,0.12549,175.13,175.11,10.1315754]
[1730369367384,0.12549,175.13,175.08,20.77807626]
[1730369367385,15.8402754,175.17,175.12,10.1315754]
[1730369367695,20.0,175.16,175.13,10.1315754]
[1730369368097,0.12549,175.15,175.13,10.1315754]
[1730369368985,0.12549,175.16,175.13,10.1315754]
[1730369369317,0.12549,175.16,175.12,10.1315754]
[1730369369482,10.2570654,175.16,175.11,15.8419754]
[1730369370186,10.2570654,175.16,175.12,10.1315754]
[1730369370387,0.12549,175.16,175.12,10.1315754]
[1730369371607,0.12549,175.16,175.13,10.1315754]
[1730369371814,26.2754754,175.18,175.13,10.1315754]
[1730369372017,16.1439,175.18,175.14,10.1315754]
[1730369372304,0.12549,175.18,175.15,10.1315754]
[1730369373004,0.12549,175.18,175.14,10.1315754]
[1730369374315,5.83389,175.18,175.14,10.1315754]
[1730369375319,0.12549,175.18,175.16,10.1315754]
[1730369375604,0.12549,175.18,175.15,10.1315754]
[1730369379717,20.12549,175.19,175.15,10.1315754]
[1730369379897,25.83349,175.19,175.15,10.1315754]
[1730369380912,25.83349,175.19,175.16,10.1315754]
[1730369384003,5.83349,175.19,175.16,10.1315754]
[1730369385214,0.12549,175.17,175.13,10.1315754]
[1730369385397,10.2570654,175.17,175.12,10.1315754]
[1730369385914,10.1315754,175.15,175.1,10.1315754]
[1730369386211,0.12549,175.14,175.1,10.1315754]
[1730369387123,25.83539,175.14,175.1,10.1315754]
[1730369388815,25.83539,175.14,175.11,10.1315754]
[1730369389721,20.0,175.15,175.13,10.1315754]
[1730369390022,0.12549,175.14,175.13,10.1315754]
[1730369390317,20.0,175.15,175.13,10.1315754]
[1730369390821,20.0,175.15,175.12,10.1315754]
[1730369391122,20.12549,175.16,175.12,10.1315754]
[1730369392417,25.83459,175.16,175.12,10.1315754]
[1730369392820,25.83459,175.16,175.13,10.1315754]
[1730369393912,25.83459,175.16,175.14,10.1315754]
[1730369394619,20.0,175.16,175.14,10.1315754]
[1730369395117,5.7084,175.18,175.15,10.1315754]
[1730369395499,0.12549,175.17,175.15,10.1315754]
[1730369399924,25.7226754,175.21,175.16,10.1315754]
[1730369400220,20.0,175.19,175.16,10.1315754]
[1730369400718,31.4300754,175.21,175.16,10.1315754]
[1730369400719,20.12549,175.2,175.16,10.1315754]
[1730369401297,5.708,175.19,175.16,10.1315754]
[1730369401713,5.708,175.19,175.15,10.1315754]
[1730369403008,20.12549,175.2,175.15,10.1315754]
[1730369403406,20.12549,175.2,175.16,10.1315754]
[1730369404227,25.83319,175.2,175.16,10.1315754]
[1730369411823,25.83319,175.2,175.17,10.1315754]
[1730369412029,5.83319,175.2,175.17,10.1315754]
[1730369413832,5.7073,175.22,175.19,10.1315754]
[1730369414628,30.1315754,175.24,175.19,10.1315754]
[1730369414835,20.0,175.24,175.21,10.1315754]
[1730369415633,0.12549,175.23,175.21,10.1315754]
[1730369415831,0.12549,175.23,175.2,10.1315754]
[1730369416407,26.6454754,175.26,175.22,10.1315754]
[1730369416408,5.7058,175.26,175.22,10.1315754]
[1730369418020,5.7055,175.27,175.23,10.1315754]
[1730369418920,10.1315754,175.29,175.24,10.1315754]
[1730369419144,20.0,175.28,175.24,10.1315754]
[1730369419461,20.0,175.28,175.25,10.1315754]
[1730369419766,20.12549,175.29,175.25,10.1315754]
[1730369419946,25.83029,175.29,175.25,10.1315754]
[1730369420844,25.7048,175.29,175.26,10.1315754]
[1730369421455,25.7048,175.29,175.22,19.9742]
[1730369421456,20.12549,175.32,175.28,10.1315754]
[1730369422153,0.12549,175.32,175.28,15.8365754]
[1730369422462,5.82939,175.32,175.28,10.1315754]
[1730369422774,5.82939,175.32,175.29,10.1315754]
[1730369422948,5.82939,175.32,175.28,10.1315754]
[1730369423671,10.1315754,175.3,175.25,10.1315754]
[1730369424170,10.2570654,175.31,175.25,10.1315754]
[1730369424376,10.2570654,175.31,175.27,10.1315754]
[1730369424377,5.7045,175.3,175.27,10.1315754]
[1730369426049,5.7045,175.3,175.26,10.1315754]
[1730369426245,15.8360754,175.3,175.25,10.1315754]
[1730369426541,5.7045,175.3,175.26,10.1315754]
[1730369427035,5.7045,175.3,175.27,10.1315754]
[1730369427229,5.7045,175.3,175.26,10.1315754]
[1730369437059,5.7045,175.3,175.25,10.1315754]
[1730369437754,10.1315754,175.27,175.22,10.1315754]
[1730369438860,10.2570654,175.28,175.23,10.1315754]
[1730369439035,20.0,175.27,175.23,10.1315754]
[1730369440438,30.1315754,175.27,175.22,10.1315754]
[1730369440644,5.7058,175.26,175.22,10.1315754]
[1730369445167,5.7058,175.26,175.21,10.1315754]
[1730369445864,10.2570654,175.25,175.2,10.1315754]
[1730369447159,5.7064,175.24,175.2,10.1315754]
[1730369447342,5.7064,175.24,175.21,10.1315754]
[1730369448754,5.7058,175.26,175.23,10.1315754]
[1730369450666,5.7058,175.26,175.22,10.1315754]
[1730369451834,30.1315754,175.27,175.23,10.1315754]
[1730369451835,25.7055,175.27,175.23,10.1315754]
[1730369452034,20.0,175.27,175.24,10.1315754]
[1730369452954,20.0,175.28,175.24,10.1315754]
[1730369453340,20.0,175.28,175.23,10.1315754]
[1730369454267,30.1315754,175.28,175.23,10.1315754]
[1730369454568,35.8366754,175.28,175.23,10.1315754]
[1730369455267,35.8366754,175.28,175.21,5.83269]
[1730369455446,35.8366754,175.28,175.23,10.1315754]
[1730369458941,35.8366754,175.28,175.22,15.8385754]
[1730369459453,10.1315754,175.23,175.18,10.1315754]
[1730369459776,10.1315754,175.24,175.19,10.1315754]
[1730369461160,5.7067,175.23,175.19,10.1315754]
[1730369461360,15.8382754,175.23,175.19,10.1315754]
[1730369462166,10.1315754,175.2,175.17,5.93566998]
[1730369462347,10.1315754,175.2,175.15,18.22325655]
[1730369463066,15.8394754,175.2,175.15,18.22325655]
[1730369466567,15.8394754,175.2,175.12,10.1315754]
[1730369466568,10.1315754,175.17,175.12,10.1315754]
[1730369467366,5.709,175.16,175.12,10.1315754]
[1730369468066,5.709,175.16,175.11,14.2766]
[1730369468067,5.709,175.16,175.13,10.1315754]
[1730369468872,5.709,175.16,175.1,5.93945517]
[1730369468873,10.1315754,175.15,175.11,10.1315754]
[1730369469073,10.1315754,175.14,175.1,5.93945517]
[1730369469378,5.71,175.13,175.09,10.1315754]
[1730369469783,5.71,175.13,175.08,30.90935166]
[1730369469784,15.8415754,175.13,175.08,30.90935166]
[1730369469981,10.1315754,175.11,175.08,0.78757626]
[1730369470659,10.1315754,175.1,175.08,0.78757626]
[1730369471366,5.7113,175.09,175.08,0.78757626]
[1730369471960,5.83679,175.09,175.08,0.78757626]
[1730369472177,15.9683654,175.09,175.08,0.78757626]
[1730369472560,5.83679,175.09,175.08,0.78757626]
[1730369472766,30.155,175.13,175.08,0.78757626]
[1730369472767,15.8418754,175.12,175.08,0.78757626]
[1730369472962,5.7103,175.12,175.08,10.91915166]
[1730369473181,5.7103,175.12,175.09,10.1315754]
[1730369473378,25.83549,175.13,175.09,10.1315754]
[1730369473788,35.9670654,175.13,175.08,10.91915166]
[1730369476663,10.1315754,175.12,175.08,0.78757626]
[1730369476866,15.8418754,175.12,175.08,0.78757626]
[1730369479066,5.7103,175.12,175.08,10.91915166]
[1730369479389,5.7099,175.14,175.1,10.1315754]
[1730369480887,10.1315754,175.15,175.1,10.1315754]
[1730369481088,10.1315754,175.17,175.12,10.1315754]
[1730369481295,10.1315754,175.18,175.13,10.1315754]
[1730369481585,15.8395754,175.19,175.14,10.1315754]
[1730369481991,10.1315754,175.18,175.13,10.1315754]
[1730369482389,15.8400754,175.18,175.13,10.1315754]
[1730369484485,15.8400754,175.18,175.13,15.8414754]
[1730369485401,15.8390754,175.21,175.16,10.1315754]
[1730369485776,15.8390754,175.21,175.17,10.1315754]
[1730369485777,5.7075,175.21,175.17,10.1315754]
[1730369487001,15.8385754,175.23,175.18,15.8399754]
[1730369487672,10.1315754,175.22,175.18,5.7084]
[1730369487879,10.1315754,175.22,175.17,30.1113754]
[1730369488592,15.8388754,175.22,175.17,30.1113754]
[1730369492591,10.1315754,175.24,175.19,10.1315754]
[1730369493698,10.1315754,175.23,175.18,10.1315754]
[1730369494202,10.1315754,175.24,175.19,10.1315754]
[1730369494872,15.8382754,175.24,175.19,10.1315754]
[1730369496403,15.8376754,175.25,175.2,10.1315754]
[1730369496704,10.1315754,175.26,175.2,10.1315754]
[1730369497001,10.1315754,175.25,175.2,5.7076]
[1730369497802,10.1315754,175.25,175.2,15.8391754]
[1730369498099,15.8376754,175.25,175.2,15.8391754]
[1730369500497,10.1315754,175.23,175.19,14.2702]
[1730369501680,10.1315754,175.25,175.19,24.4017754]
[1730369504085,5.7064,175.24,175.19,24.4017754]
[1730369504807,5.7064,175.24,175.2,10.1315754]
[1730369505504,15.8379754,175.24,175.19,24.4017754]
[1730369506209,5.7064,175.24,175.2,10.1315754]
[1730369506417,15.8379754,175.24,175.19,30.1097754]
[1730369509191,5.7064,175.24,175.2,10.1315754]
[1730369511597,5.7064,175.24,175.19,5.708]
[1730369511598,15.8379754,175.24,175.19,10.1315754]
[1730369513015,15.8379754,175.24,175.19,15.8394754]
[1730369513899,5.7064,175.24,175.2,10.1315754]
[1730369517218,15.8379754,175.24,175.19,10.1315754]
[1730369518621,15.8379754,175.24,175.19,15.8394754]
[1730369519316,15.8379754,175.24,175.19,30.1096754]
[1730369520311,5.7064,175.24,175.2,10.1315754]
[1730369522008,15.8379754,175.24,175.19,15.8393754]
[1730369522328,15.8379754,175.24,175.2,10.1315754]
[1730369522502,10.1315754,175.24,175.2,10.1315754]
[1730369522824,10.1315754,175.25,175.2,10.1315754]
[1730369524729,15.8378754,175.25,175.2,15.8391754]
[1730369530504,15.8369754,175.27,175.22,10.1315754]
[1730369530730,0.12549,175.26,175.22,10.1315754]
[1730369531729,10.1315754,175.29,175.24,10.1315754]
[1730369531937,15.8797,175.3,175.2,21.3934]
[1730369531938,21.5843,175.3,175.26,10.1315754]
[1730369532233,31.7158754,175.3,175.25,10.1315754]
[1730369538630,31.7158754,175.3,175.26,10.1315754]
[1730369539144,31.7158754,175.3,175.25,10.1315754]
[1730369540327,31.7158754,175.3,175.26,10.1315754]
[1730369540637,31.7158754,175.3,175.25,10.1315754]
[1730369542146,5.83039,175.29,175.26,10.1315754]
[1730369542315,5.7049,175.29,175.26,10.1315754]
[1730369542638,5.7049,175.29,175.25,10.1315754]
[1730369544842,5.7049,175.29,175.26,10.1315754]
[1730369547641,5.7049,175.29,175.25,10.1315754]
[1730369548038,10.1315754,175.26,175.23,19.9732]
[1730369548241,10.1315754,175.27,175.23,19.9732]
[1730369548757,10.1315754,175.27,175.23,30.1047754]
[1730369550530,10.1315754,175.28,175.23,30.1047754]